Cogmind - Beta 13 @@@ ROGUE MODE // 2024.07.24 @ 00:30:02 Player: swetpototo Result: Destroyed by Y-45 Defender with Heavy Assault Rifle Performance ------------- Evolutions (2) 1000 Regions Visited (7) 1400 Robots Destroyed (42) 210 Value Destroyed (1237) 1237 Prototype IDs (2) 40 Alien Tech Used (0) 0 Bonus (997) 997 TOTAL SCORE: 4884 Bonus ------- High Alert Combat Kills 116 Follower Combat Kills 231 Entered Garrisons 200 Used RIF Installer 500 Friendly Fire -50 Cogmind --------- Core Integrity 0/550 Matter 392/400 Energy 160/160 System Corruption 3% Temperature Cool (9) Movement Treading (160) Location -8/Storage Parts ------- > --- POWER (1) -------- Light Nuclear Core > --- PROPULSION (2) --- Light Treads Light Treads > --- UTILITY (6) ------ Small Storage Unit Medium Matter Pod Advanced Visual Processing Unit Core Analyzer Core Analyzer > --- WEAPON (2) ------- Improved Datajack Katana > --- INVENTORY (8) ---- Light Nuclear Core Light Nuclear Core Light Treads Light Treads Improved Carbon-fiber Leg Flak Cannon Katana Peak State ------------ > --- POWER ------------ Light Nuclear Core > --- PROPULSION ------- Improved Carbon-fiber Leg Improved Carbon-fiber Leg > --- UTILITY ---------- Small Storage Unit Medium Matter Pod Advanced Visual Processing Unit Core Analyzer Core Analyzer > --- WEAPON ----------- Katana Katana > --- INVENTORY -------- Light Nuclear Core Light Nuclear Core Light Treads Relay Coupler [Sentry] Flak Cannon Improved Datajack [Rating: 31] Favorites ----------- Power Ion Engine Engine Ion Engine Power Core Nuclear Core Propulsion Light Treads Treads Light Treads Leg Improved Carbon-fiber Leg Utility Small Storage Unit Device Tractor Beam Storage Small Storage Unit Processor Advanced Visual Processing Unit Hackware Relay Coupler [Sentry] Protection Improved Light Armor Plating Weapon Flak Cannon Energy Gun Small Laser Ballistic Gun Heavy Assault Rifle Ballistic Cannon Flak Cannon Launcher Long-range Missile Launcher Slashing Weapon Katana Special Melee Weapon Improved Datajack Build | -11 -10 -10 -10 -9 -8 -8 -8 ------- Run | Yrd Mat Min Exi Min Mat Gar Sto Slots Evolved 4 | . . . . . 4 . . Power . | . . . . . . . . Propulsion . | . . . . . . . . Utility 4 | . . . . . 4 . . Weapon . | . . . . . . . . Parts Attached 41 | 6 4 1 . . 8 18 4 Power 3 | 1 . . . . 1 1 . Engine 1 | 1 . . . . . . . Core 2 | . . . . . 1 1 . Reactor . | . . . . . . . . Propulsion 12 | 2 2 . . . 1 5 2 Treads 10 | 2 2 . . . 1 3 2 Leg 2 | . . . . . . 2 . Wheel . | . . . . . . . . Hover . | . . . . . . . . Flight . | . . . . . . . . Utility 12 | 1 1 . . . 4 5 1 Device 4 | . 1 . . . 1 2 . Storage 2 | 1 . . . . . 1 . Processor 4 | . . . . . 2 2 . Hackware 1 | . . . . . . . 1 Protection 1 | . . . . . 1 . . Artifact . | . . . . . . . . Weapon 14 | 2 1 1 . . 2 7 1 Energy Gun 1 | 1 . . . . . . . Energy Cannon . | . . . . . . . . Ballistic Gun 2 | 1 . 1 . . . . . Ballistic Cannon 6 | . 1 . . . 2 3 . Launcher 1 | . . . . . . 1 . Special Weapon . | . . . . . . . . Impact Weapon . | . . . . . . . . Slashing Weapon 3 | . . . . . . 3 . Piercing Weapon . | . . . . . . . . Special Melee Weapon 1 | . . . . . . . 1 Unidentified Prototypes . | . . . . . . . . Parts Lost 10 | . . . . . . 10 . Power . | . . . . . . . . Propulsion 3 | . . . . . . 3 . Utility 4 | . . . . . . 4 . Weapon 3 | . . . . . . 3 . Highest Loss Streak 9 | . . . . . . 9 . To Critical Strikes . | . . . . . . . . Average Slot Usage (%) 87 | . 89 100 100 100 70 79 93 Engine 5 | . 14 14 14 14 1 . . Core 3 | . . . . . 7 4 9 Treads 19 | . 25 28 28 28 18 13 16 Device 8 | . 6 14 14 14 8 6 . Storage 14 | . 14 14 14 14 9 16 18 Processor 8 | . . . . . 6 11 27 Protection 2 | . . . . . 1 6 . Ballistic Gun 6 | . 14 14 14 14 6 . . Ballistic Cannon 9 | . 5 14 14 14 11 10 . Slashing Weapon 4 | . . . . . . 6 13 Naked Turns . | . . . . . . . . Heaviest Build 29 | 12 15 17 17 17 28 29 16 Greatest Support 40 | 40 40 40 40 40 40 40 40 Greatest Overweight (x) 5 | . 3 . . . . 4 5 Average Overweight (x) . | . . . . . . . . Largest Inventory Capacity 8 | 8 8 8 8 8 8 8 8 Average Capacity 7 | 7 8 8 8 8 8 8 8 Most Carried 8 | 4 8 8 8 8 8 8 8 Average Carried 7 | 2 6 7 8 8 7 7 7 Final Capacity 8 | 8 8 8 8 8 8 8 8 Final Carried 8 | 4 8 8 8 8 8 6 7 Class Distribution -------------------- 94% | Mutant 5% | Scavenger-Mutant Dominant Class ---------------- Mutant | -10/Materials Mutant | -10/Mines Mutant | -10/Exiles Mutant | -9/Mines Mutant | -8/Materials Mutant | -8/Garrison Mutant | -8/Storage Resources | -11 -10 -10 -10 -9 -8 -8 -8 ----------- Run | Yrd Mat Min Exi Min Mat Gar Sto Matter Collected 1271 | 193 159 115 . . 141 596 67 Remotely 411 | . 87 115 . . 141 68 . Salvage Created 1124 | . 155 70 . . 164 644 91 Parts 74 | . 9 9 . . 16 29 11 Haulers Intercepted . | . . . . . . . . Recyclers Shooed . | . . . . . . . . Parts Field Recycled . | . . . . . . . . Retrieved Matter . | . . . . . . . . Parts Self-Destructed . | . . . . . . . . Prevented . | . . . . . . . . Kills | -11 -10 -10 -10 -9 -8 -8 -8 ------- Run | Yrd Mat Min Exi Min Mat Gar Sto Combat Hostiles Destroyed 39 | . 2 5 . . 5 24 3 Melee 10 | . . . . . . 7 3 Guns 5 | . . 3 . . 2 . . Cannons 15 | . 2 2 . . 3 8 . AOE 9 | . . . . . . 9 . Classes Destroyed 8 | . 2 1 . . 3 2 . Worker 1 | . . . . . 1 . . Builder 1 | . . . . . 1 . . Recycler 1 | . 1 . . . . . . Swarmer 16 | . . 5 . . 3 6 2 Grunt 12 | . 2 . . . 1 9 . Brawler 2 | . . . . . . 2 . Sentry 7 | . . . . . 1 5 1 Programmer 2 | . . . . . . 2 . Best Kill Streak 9 | . 2 3 . . 5 9 3 Combat Bots Only 9 | . 2 3 . . 3 9 3 Max Kills in Single Turn 7 | . 1 1 . . 2 7 1 Gunslinging . | . . . . . . . . Exploded 7 | . . . . . . 7 . Melee 1 | . . . . . . 1 1 Uniques/NPCs Destroyed . | . . . . . . . . Combat | -11 -10 -10 -10 -9 -8 -8 -8 -------- Run | Yrd Mat Min Exi Min Mat Gar Sto Hostile Shots Fired 262 | . 2 28 . . 19 189 24 Missed 76 | . . 10 . . 5 52 9 Damage Taken 2311 | . 22 145 . 17 143 1793 191 Core 601 | . . 44 . . 16 467 74 Absorbed by Shields . | . . . . . . . . Core Remaining (%) 91 | 100 . . . 82 . . . Volleys Fired 53 | . 8 9 . . 8 28 . Largest 2 | . 2 2 . . 2 2 . Hottest 88 | . 60 55 . . 88 88 . Shots Fired 99 | . 15 18 . . 16 50 . Gun 29 | . 13 9 . . 7 . . Cannon 68 | . 2 9 . . 9 48 . Launcher 2 | . . . . . . 2 . Special . | . . . . . . . . Kinetic 92 | . 10 18 . . 16 48 . Thermal 5 | . 5 . . . . . . Explosive 2 | . . . . . . 2 . Electromagnetic . | . . . . . . . . Robot Hit Streak 11 | . 5 4 . . 6 11 . Robot Miss Streak 9 | . 2 3 . . 3 9 . Penetration Max . | . . . . . . . . Secondary Targets . | . . . . . . . . Shots Hit Robots 93 | . 10 8 . . 11 53 11 Core Hits 75 | . 6 5 . . 12 50 2 Critical Kills . | . . . . . . . . Critical Parts Destroyed . | . . . . . . . . Critical Strikes 1 | . . . . . 1 . . Blast 1 | . . . . . 1 . . Melee Attacks 62 | . . . . . . 32 30 Impact . | . . . . . . . . Slashing 55 | . . . . . . 32 23 Piercing . | . . . . . . . . Sneak Attacks 4 | . . . . . . . 4 Combat Hostiles . | . . . . . . . . Follow-up Attacks 4 | . . . . . . 3 1 Damage Inflicted 2687 | 2 106 86 . . 245 2010 238 Guns 216 | . 71 50 . . 95 . . Cannons 969 | . 35 36 . . 150 748 . Explosions 823 | . . . . . . 823 . Melee 677 | . . . . . . 439 238 Ramming 2 | 2 . . . . . . . Kinetic 1151 | . 72 86 . . 245 748 . Thermal 34 | . 34 . . . . . . Explosive 823 | . . . . . . 823 . Electromagnetic . | . . . . . . . . Impact . | . . . . . . . . Slashing 677 | . . . . . . 439 238 Piercing . | . . . . . . . . Highest Corruption 3 | . . . . . . 3 3 Average Corruption 2 | . . . . . . 2 3 Corruption Purged . | . . . . . . . . Corruption Blocked . | . . . . . . . . Effects 20 | . . . . . . 15 5 Message Errors 4 | . . . . . . 2 2 Matter Fused 10 | . . . . . . 7 3 Heat Flow Errors 1 | . . . . . . 1 . Energy Discharges 3 | . . . . . . 3 . Parts Rejected 1 | . . . . . . 1 . Weapon Failures 1 | . . . . . . 1 . Overload Shots . | . . . . . . . . Overflow Damage 81 | . . . . . . 72 9 Projectiles . | . . . . . . . . Explosions 50 | . . . . . . 50 . Melee 31 | . . . . . . 22 9 Knockbacks 12 | . . . . . . 12 . Impact . | . . . . . . . . Kinetic 11 | . . . . . . 11 . Secondary 1 | . . . . . . 1 . Self-Inflicted Damage 82 | . . . . . . 82 . Shots 2 | . . . . . . 2 . Rammed 1 | 1 . . . . . . . Targets Rammed 1 | 1 . . . . . . . Kicked . | . . . . . . . . Crushed . | . . . . . . . . Highest Temperature 261 | . 40 28 . . 21 261 . Average Temperature 79 | . 16 12 . . 10 114 . Received Heat Transfer 624 | . 12 . . . 18 558 36 Siege Activations . | . . . . . . . . Robots Corrupted . | . . . . . . . . Combat Hostiles . | . . . . . . . . Parts Fried . | . . . . . . . . Impact Corruptions . | . . . . . . . . Robots Melted . | . . . . . . . . Combat Hostiles . | . . . . . . . . Parts Melted . | . . . . . . . . Heat Transferred 75 | . 75 . . . . . . Parts Sabotaged . | . . . . . . . . Parts Stolen . | . . . . . . . . Parts Stripped . | . . . . . . . . Power Chain Reactions . | . . . . . . . . Alert | -11 -10 -10 -10 -9 -8 -8 -8 ------- Run | Yrd Mat Min Exi Min Mat Gar Sto Peak Influence 658 | . 70 147 . . 280 658 472 Initial 320 | . . 27 . . . 156 320 Average 237 | . 23 131 . . 136 375 402 Maximum Alert Level 2 | . . . . . 1 2 2 Low Security (%) 45 | 100 100 100 . 100 55 7 . Level 1 35 | . . . . . 44 61 47 Level 2 18 | . . . . . . 31 52 Level 3 . | . . . . . . . . Level 4 . | . . . . . . . . Level 5 . | . . . . . . . . High Security . | . . . . . . . . Max Security . | . . . . . . . . Squads Dispatched 4 | . 2 . . . 2 . . Investigation 1 | . 1 . . . . . . Extermination . | . . . . . . . . Reinforcement 3 | . 1 . . . 2 . . Assault . | . . . . . . . . Garrison . | . . . . . . . . Intercept . | . . . . . . . . Searches Triggered . | . . . . . . . . Construction Impeded . | . . . . . . . . Haulers Reinforced . | . . . . . . . . Active Scanning Responses . | . . . . . . . . Cargo Convoy Interrupts . | . . . . . . . . Stealth | -11 -10 -10 -10 -9 -8 -8 -8 --------- Run | Yrd Mat Min Exi Min Mat Gar Sto Distress Signals 1 | . . . . . . . 1 Communications Jammed . | . . . . . . . . Distress Signals . | . . . . . . . . Times Spotted 70 | . 7 7 . . 12 35 9 Peak Tracking Total 18 | . 3 3 . . 6 18 4 Tactical Retreats 2 | . . . . . . 2 . Traps | -11 -10 -10 -10 -9 -8 -8 -8 ------- Run | Yrd Mat Min Exi Min Mat Gar Sto Traps Triggered 1 | . 1 . . . . . . Indirectly . | . . . . . . . . Trap Hack Attempts . | . . . . . . . . Triggered . | . . . . . . . . Disarmed . | . . . . . . . . Reprogrammed . | . . . . . . . . Reused . | . . . . . . . . Traps Extracted . | . . . . . . . . Installed . | . . . . . . . . Triggered . | . . . . . . . . Machines | -11 -10 -10 -10 -9 -8 -8 -8 ---------- Run | Yrd Mat Min Exi Min Mat Gar Sto Machines Disabled 2 | . . . . . . . 2 Max in Single Turn 1 | . . . . . . . 1 Machines Repaired . | . . . . . . . . Machines Dismantled . | . . . . . . . . Machines Sabotaged . | . . . . . . . . Overloaded Fab Kills . | . . . . . . . . Hacking | -11 -10 -10 -10 -9 -8 -8 -8 --------- Run | Yrd Mat Min Exi Min Mat Gar Sto Machines Accessed 10 | . 2 . 1 1 1 1 4 Terminals 7 | . 2 . . . . 1 4 Fabricators . | . . . . . . . . Repair Stations . | . . . . . . . . Recycling Units . | . . . . . . . . Scanalyzers . | . . . . . . . . Garrison Access 1 | . . . . . 1 . . Total Hacks 45 | . 9 . 23 1 1 1 10 Successful 32 | . 2 . 23 1 1 1 4 Failed 13 | . 7 . . . . . 6 Catastrophic 3 | . 1 . . . . . 2 Database Lockouts . | . . . . . . . . Manual 1 | . . . . . . . 1 Terminals 20 | . 9 . . . . 1 10 Fabricators . | . . . . . . . . Repair Stations . | . . . . . . . . Recycling Units . | . . . . . . . . Scanalyzers . | . . . . . . . . Garrison Access 1 | . . . . . 1 . . Terminal Hacks 31 | . 2 . 23 1 . 1 4 Record 23 | . . . 23 . . . . Prototype ID Bank 1 | . 1 . . . . . . Open Door 2 | . . . . 1 . . 1 Branch Access Points 1 | . . . . . . . 1 Emergency Access Points 1 | . . . . . . 1 . Alert Level 1 | . . . . . . . 1 Locate Traps 2 | . 1 . . . . . 1 Fabricator Hacks . | . . . . . . . . Repair Station Hacks . | . . . . . . . . Recycling Unit Hacks . | . . . . . . . . Scanalyzer . | . . . . . . . . Garrison Access Hacks 1 | . . . . . 1 . . Unlock Access 1 | . . . . . 1 . . Unauthorized Hacks . | . . . . . . . . Terminals . | . . . . . . . . Fabricators . | . . . . . . . . Repair Stations . | . . . . . . . . Recycling Units . | . . . . . . . . Scanalyzers . | . . . . . . . . Garrison Access . | . . . . . . . . Data Cores Recovered . | . . . . . . . . Used . | . . . . . . . . Hacking Detections 6 | . 2 . . . . 1 3 Full Trace Events 3 | . 2 . . . . . 1 Feedback Events . | . . . . . . . . Feedback Blocked . | . . . . . . . . Robot Schematics Acquired . | . . . . . . . . Robots Built . | . . . . . . . . Authchips . | . . . . . . . . Time . | . . . . . . . . Total Robot Build Rating . | . . . . . . . . Part Schematics Acquired . | . . . . . . . . Parts Built . | . . . . . . . . Authchips . | . . . . . . . . Time . | . . . . . . . . Total Part Build Rating . | . . . . . . . . Parts Repaired . | . . . . . . . . Time . | . . . . . . . . Parts Recycled . | . . . . . . . . Recycled Matter . | . . . . . . . . Retrieved Matter . | . . . . . . . . Retrieved Components . | . . . . . . . . Parts Scanalyzed . | . . . . . . . . Part Schematics Acquired . | . . . . . . . . Parts Damaged . | . . . . . . . . Bothacking | -11 -10 -10 -10 -9 -8 -8 -8 ------------ Run | Yrd Mat Min Exi Min Mat Gar Sto Used RIF Installer 1 | . . . . . . 1 . Robots Hacked 2 | . . . . . . . 2 Non-combat . | . . . . . . . . Combat 2 | . . . . . . . 2 Robot Hacks Applied 2 | . . . . . . . 2 formatsys_high 2 | . . . . . . . 2 Relay Couplers Released . | . . . . . . . . Attached 1 | . . . . . . . 1 Fabnet Peak Effective % . | . . . . . . . . Robots Rewired 9 | . . . . . . 9 . Allies Hacked . | . . . . . . . . Hacks Repelled . | . . . . . . . . Allies | -11 -10 -10 -10 -9 -8 -8 -8 -------- Run | Yrd Mat Min Exi Min Mat Gar Sto Total Allies 15 | . . . . 4 . 9 2 Largest Group 5 | . . . . 4 4 5 1 Highest-Rated Group 120 | . . . . 71 71 120 15 Highest-Rated Ally 40 | . . . . 31 31 40 15 Total Orders . | . . . . . . . . Ally Attacks 67 | . . . . . 22 41 4 Total Damage 1158 | . . . . . 282 795 81 Kills 10 | . . . . . 4 6 . Allies Corrupted . | . . . . . . . . Allies Melted . | . . . . . . . . Intel | -11 -10 -10 -10 -9 -8 -8 -8 ------- Run | Yrd Mat Min Exi Min Mat Gar Sto Robot Analysis Total . | . . . . . . . . Derelict Logs Recovered 1 | . . 1 . . . . . Drone Launches . | . . . . . . . . Drone Recoveries . | . . . . . . . . Exploration | -11 -10 -10 -10 -9 -8 -8 -8 ------------- Run | Yrd Mat Min Exi Min Mat Gar Sto Turns Passed 2515 | 115 209 401 243 76 332 821 318 Spaces Moved 1286 | 64 110 234 152 48 167 364 147 Core 10 | 3 1 . . . . 4 2 Treads 1174 | 61 109 234 152 48 167 265 138 Legs 102 | . . . . . . 95 7 Wheels . | . . . . . . . . Hover . | . . . . . . . . Flight . | . . . . . . . . Fastest Speed 50 | 50 160 160 160 160 160 120 120 Average Speed 156 | 154 160 160 160 160 160 150 160 Slowest Speed 300 | 160 200 160 160 160 160 250 300 Overloaded Moves . | . . . . . . . . Propulsion Burnouts . | . . . . . . . . Robots Hopped . | . . . . . . . . Cave-ins Triggered . | . . . . . . . . Exploration Rate (%) 29 | 5 24 55 52 16 19 41 27 Regions Visited 7 Branch Regions 4 Pre-discovered Areas 2 | . . 1 1 . . . . Known Exits Taken 1 | . . . . . 1 . . Unknown Exits Taken 5 | 1 1 1 1 1 . . . Scrap Searched 1 | . . 1 . . . . . Spaces Dug 2 | . . . . . . 1 1 Terrain Destroyed 13 | . . . . . . 12 1 Melee 2 | . . . . . . 1 1 Projectile . | . . . . . . . . AOE 11 | . . . . . . 11 . Terrain Rammed . | . . . . . . . . Walls Destroyed . | . . . . . . . . Machines Disabled . | . . . . . . . . Actions | -11 -10 -10 -10 -9 -8 -8 -8 --------- Run | Yrd Mat Min Exi Min Mat Gar Sto Total 1617 | 76 128 246 152 47 218 547 203 Wait 65 | 2 . . . . 18 23 22 Move 1278 | 63 109 233 151 47 166 362 147 Hop . | . . . . . . . . Pick Up 23 | 4 5 1 . . 6 5 2 Fast Attach 27 | 6 4 . . . 6 9 2 Attach 5 | . . . . . . 4 1 Detach 4 | . . . . . 2 1 1 Swap 9 | . . 1 . . 2 5 1 Drop 21 | . 2 2 . . 10 5 2 Fire 53 | . 8 9 . . 8 28 . Melee 50 | . . . . . . 25 25 Ram . | . . . . . . . . Kick . | . . . . . . . . Crush 1 | 1 . . . . . . . Escape Stasis . | . . . . . . . . Rewire 81 | . . . 1 . . 80 . Trap . | . . . . . . . . Miscellaneous . | . . . . . . . . Route ------- -11/Scrapyard -10/Materials -10/Mines -10/Exiles (discovered 2 exits: *Min x2) -9/Mines -8/Materials -8/Garrison -8/Storage (discovered 1 exit: Rec) History --------- Turn | Location | Event 4 | -11/Scrapyard | Discovered new exit (range 16) 116 | -11/Scrapyard | Entered Materials 298 | -10/Materials | Discovered new exit (range 9) 302 | -10/Materials | Build established: Mutant 325 | -10/Materials | Entered Mines 400 | -10/Mines | Learned location of Zion (-7) 546 | -10/Mines | Received a Rocket Launcher from a helpful Derelict 618 | -10/Mines | Joined a pair of Derelicts in attacking an 0b10 outpost 720 | -10/Mines | Deemed a non-threat by the Exiles lab entrance 720 | -10/Mines | Discovered new exit (range 5) 726 | -10/Mines | Entered Exiles 754 | -10/Exiles | Discovered new exit (range 14) 779 | -10/Exiles | Met 8R-AWN 811 | -10/Exiles | Met EX-HEX 873 | -10/Exiles | Met EX-DEC 951 | -10/Exiles | Discovered new exit (range 12) 969 | -10/Exiles | Entered Mines 972 | -9/Mines | Received a Mining Laser from a helpful Derelict 993 | -9/Mines | Assisted by bots powering up and referring to "LRC-V3" 1013 | -9/Mines | Discovered new exit (range 13) 1034 | -9/Mines | Met a Derelict who couldn't figure out how to use a Trap Extractor 1045 | -9/Mines | Entered Materials 1045 | -8/Materials | Accompanied by 4 allies 1045 | -8/Materials | Evolved 4 slots: Utility x4 1357 | -8/Materials | Identified exit to Garrison 1377 | -8/Materials | Entered Garrison 1384 | -8/Garrison | Triggered checkpoint 1403 | -8/Garrison | Lost 4 allies 1495 | -8/Garrison | Triggered checkpoint 1514 | -8/Garrison | Triggered checkpoint 1704 | -8/Garrison | Lost 3 allies 1776 | -8/Garrison | Lost 4 allies 1948 | -8/Garrison | Core integrity fell below 50% 1962 | -8/Garrison | Destroyed 9 combat bots 1994 | -8/Garrison | Lost 9 parts (3n3u3w) 1996 | -8/Garrison | Core integrity fell below 20% 2050 | -8/Garrison | Destroyed 7 combat bots 2140 | -8/Garrison | Discovered new exit (range 10) 2155 | -8/Garrison | Installed Relay Interface Framework 2183 | -8/Garrison | Triggered checkpoint 2198 | -8/Garrison | Entered Storage 2314 | -8/Storage | Identified exit to Recycling 2516 | -8/Storage | Destroyed by Y-45 Defender with Heavy Assault Rifle Last Messages --------------- 02396_ Jacked A-02 Transporter... >>find_fabricator No accessible Fabricator found in memory. 02397_ Sneak attack on A-02 Transporter. 02397_ Jacked A-02 Transporter... 02398_ Sneak attack on A-02 Transporter. 02399_ R-06 Scavenger collects Flight Unit. 02426_ Connecting with Door Terminal... 02463_ U-05 Engineer builds a Wall. 02477_ K-01 Serf collects debris. 02492_ K-01 Serf cleans the Repair Station. 02501_ System corrupted: Matter fused (-8). 02504_ K-01 Serf cleans the Repair Station. 02509_ K-01 Serf collects debris. 02512_ Jacked Y-45 Defender... >>formatsys_high Rerouting network defenses. Erasing system data. Installing primary routines, ETC: 6. 02513_ Jacked Y-45 Defender... Map ----- +----------------------------------------------------+ | | | | | | | | | | | | | | | | | | | | | | | | | ?????????????????????????????????????????????????? | | ?????????????????????????????????????????????????? | | ?????????????????????????????????????????????????? | | ???????????????????????##????????????????????????? | | ???????????????????????# ?????###????????????????? | | ???????????????????????# ? #????????????????? | | ???????????????????????# """"" #????????????????? | | ???????????????????????# """"" ####?????????????? | | ???????????????????????# """"" """#?????????????? | | ???????????????????????# R"??##########??? | | ???????????????????????# """"" """??# """" #??? | | ???????????????????????# """"" #????# """" #??? | | ???????????????????????#Y""""" #????# """" ##?? | | ???????????????????????# @ #????# """" ##?> | | ???????????????????????#Y###+######### ##?? | | ???????????????????????# / #?"" | | ?????????????? / #### ### | | ??????????? ########/#### #??# ##T | | ?????????# ????????????? ??# #??# ^ ### | | ?????????????????????????? ??# #??#####+####?# | | ?????????????????????????""" ?# ##### ##### | | ?????????????????????????""" ?# | | ????????????????????????"""" # | | ???????????????????????? # ##### ##/##+ | | ???????????????????????#############???## ##? ? | | ????????????????????????????????????????# #??? | | ????????????????????????????????????????+ #???? | | ????????????????????????????????????????# #????? | | ????????????????????????????????????????# ?????? | | ????????????????????????????????????????# #?????? | | ????????????????????????????????????????# ??????? | | ????????????????????????????????????????# ??????? | | ???????????????????????????????????????? ??????? | | ???????????????????????????????????????? ??????? | | ????????????????????????????????????????## ??????? | | ?????????????????????????????????????????? ???#### | | ?????????????????????????????????????????# | | ?????????????????????????????????????????? ???##+# | +----------------------------------------------------+ Best States ------------- Heat Dissipation 59 Energy Generation 14 Energy Capacity 250 Matter Stores 400 Matter Capacity 400 Sight Range 20 Terrain Scan Density 10 Armor Coverage 150 Evasion (%) 55 Core Analysis 9 Recoil Reduction 2 Relay Coupler Types 1 Relay Coupler Value 13 Item Schematics ----------------- None Robot Schematics ------------------ None Fabricated ------------ Nothing Alien Tech Used ----------------- None Achievements -------------- None Challenges ------------ None Game ------ Seed HoverSmartbombMaul Manual? 0 Play Time 00:27:02 Cumulative 51.1 hours Start 2024.07.22 @ 19:10:56 End 2024.07.24 @ 00:30:02 Sessions 3 Manual Loads 0 Difficulty Rogue Special Mode None Game No. 57 Rogue 12 Adventurer 44 Explorer 1 Win Type - Total 2 Types 1/0/1/0/0/0/0/0/0 Lore% 17 Gallery% 49 Achievement% 34 Wizard Run 0 Options --------- Layout 1 ASCII 0 Keyboard 1 Movement Arrows Keybinds 0 Fullscreen 1 Font 24/Smallcaps Map View 50x35 Zoom Use 3% Tactical HUD 1 Map Filters NONE Filters NONE Steam 1 RUN: d262f0f6-b084-4520-8d28-8dbcf1e7cb81